{"text_format":"1","workbook":"xlsx","n_sheets":2,"sheets":["ATHLETE INFO","SIZES"],"not_rendered":{"charts":0,"images":6,"macros":1,"external_links":0,"defined_names":3,"comments":0,"pivot_tables":0},"unopened":[],"bounds":{"document_bytes":16777216,"sheet_cells":100000,"rows_first":2000,"rows_last":500,"rows_between":2000,"halvings":0,"cell_chars":16384,"cell_head_chars":4096},"cells_cut":0,"cells_raw":0,"read":"whole","date_system":"1900"}

{"sheet":"ATHLETE INFO","index":0,"n_rows":34,"n_cols":24,"rows_kept":34,"cut":false,"hidden":false,"merged":[[30,6,32,7],[4,1,4,21],[32,1,32,5],[29,1,31,5],[1,22,1,42],[5,12,5,21],[1,1,1,21],[2,1,2,21],[3,1,3,21],[18,1,18,7],[5,1,5,7],[6,1,6,7],[15,5,15,7],[16,5,16,7],[8,5,8,7],[9,5,9,7],[10,5,10,7],[24,16,24,20],[25,16,25,20],[26,16,26,20],[14,13,18,20],[11,5,11,7],[12,5,12,7],[21,7,22,7],[21,6,28,6],[20,1,20,7],[19,1,19,7],[6,31,6,37],[7,32,7,37],[8,32,8,37],[6,12,6,21],[8,13,12,20],[6,29,8,30],[7,12,7,13]]}
[]
["↑                ↑","UNIFORM MEASUREMENT GUIDE "]
["IF PROMPTED,  ","The Sizing Calculator connects you with your Varsity Rep when you can't attend the fitting.  Please follow these steps:",null,null,null,null,null,null,null,null,null,null,null,null,null,null,null,null,null,null,null,null,null,"Squad    ▼"]
["PLEASE ENABLE CONTENT","1. Complete Athlete Info    2. Measure and Enter Info    3. Determine Fit | Click to View Sizes   ",null,null,null,null,null,null,null,null,null,null,null,null,null,null,null,null,null,null,null,null,null,"9th Football"]
["TO UTILIZE THE SIZE GUIDE","IF YOU ARE SUBMITTING DANCE MEASUREMENTS, YOUR REP WILL FOLLOW UP WITH ADDITIONAL SIZE SUGGESTIONS NOT SHOWN IN THIS GUIDE",null,null,null,null,null,null,null,null,null,null,null,null,null,null,null,null,null,null,null,null,null,"9th Basketball"]
[null,"1.  ATHLETE INFO",null,null,null,null,null,null,null,null,null,null,"3.  DETERMINE YOUR FIT",null,null,null,null,null,null,null,null,null,null,"JV Football"]
[null,"PLEASE COMPLETE ALL ATHLETE INFORMATION ACCURATELY",null,null,null,null,null,null,null,null,null,null,"BASED ON YOUR AGE, THE BELOW FIT SUGGESTION IS HIGHLIGHTED",null,null,null,null,null,null,null,null,null,null,"JV Basketball"]
[null,null,null,null,null,null,null,null,null,null,null,null,null,null,null,null,null,null,null,null,null,null,null,"JV Competition"]
[null,"SCHOOL",null,null,null,null,null,null,null,null,null,null,null,"YOUTH                                                             TYPICALLY AGES 5-11                                                           Looser Fit                                                                                           Intended for a straight frame",null,null,null,null,null,null,null,null,null,"Varsity Football"]
[null,"FIRST NAME",null,null,null,null,null,null,null,null,null,null,null,null,null,null,null,null,null,null,null,null,null,"Varsity Basketball"]
[null,"LAST NAME",null,null,null,null,null,null,null,null,null,null,null,null,null,null,null,null,null,null,null,null,null,"Varsity Competition"]
[null,"MIDDLE INITIAL",null,null,null,null,null,null,null,null,null,null,null,null,null,null,null,null,null,null,null,null,null,"OTHER"]
[null,"NAME ON GARMENT",null,null,null,{"$f":"(F10)","v":0},null,null,null,null,null,null,null,null,null,null,null,null,null,null,null,null,null,"Graduation Year    ▼"]
[null,"MONOGRAM",null,null,null,{"$f":"LEFT(F10,1)","v":""},{"$f":"LEFT(F11,1)","v":""},{"$f":"LEFT(F12,1)","v":""},null,null,null,null,null,null,null,null,null,null,null,null,null,null,null,2018]
[null,"SQUAD (select up to 3)",null,null,null,"Squad    ▼","Squad    ▼","Squad    ▼",null,null,null,null,null,"ADULT                                                             TYPICALLY AGES 12+                                                            Tapered Fit                                                                                        Intended for a feminine silhouette",null,null,null,null,null,null,null,null,null,2019]
[null,"GRAD YEAR",null,null,null,"Graduation Year    ▼",null,null,null,null,null,null,null,null,null,null,null,null,null,null,null,null,null,2020]
[null,"EMAIL",null,null,null,null,null,null,null,null,null,null,null,null,null,null,null,null,null,null,null,null,null,2021]
[null,null,null,null,null,null,null,null,null,null,null,null,null,null,null,null,null,null,null,null,null,null,null,2022]
[null,"2.  MEASUREMENT INFO"]
[null,{"$f":"HYPERLINK(\"https://www.varsity.com/event/1792/varsity-fashion-measurement-how-to\",\"CLICK TO VIEW AN INSTRUCTIONAL SIZING VIDEO\")","v":"CLICK TO VIEW AN INSTRUCTIONAL SIZING VIDEO"}]
[null,"FOLLOW THE POP UP GUIDE IN EACH GREY SQUARE TO MEASURE & ENTER"]
[null,"BUST",null,"WAIST",null,"HIP","PRACTICE CLOTHES","PROVIDE YOUR SIZES"]
[]
[null,"SKIRT"]
[null,"LENGTH",null,"INSEAM",null,"SHOE",null,"T|TANK   "]
[]
[]
[null,"HEIGHT",null,"WEIGHT",null,"AGE",null,"SHORT"]
[]
[null,"If you were to wear another teammate's uniform, whose would it be?"]
[null,null,null,null,null,null," ROUND UP WHEN PROVIDING MEASUREMENTS!"]
[]
[]
[null,"The above measurements are needed to determine your sizes.  Please have one person such as your coach or a seasmstress take your measurements using the guidelines listed."]

{"sheet":"SIZES","index":1,"n_rows":54,"n_cols":71,"rows_kept":54,"cut":false,"hidden":false,"merged":[[32,22,32,39],[33,22,34,39],[29,5,29,6],[29,13,29,15],[29,24,29,25],[29,32,29,34],[31,3,31,20],[9,34,9,39],[17,16,17,17],[18,35,18,36],[17,35,17,36],[14,24,14,36],[14,5,14,17],[71,10,71,39],[43,19,43,37],[44,19,44,37],[11,8,12,34],[18,32,18,34],[17,32,17,34],[16,32,16,34],[40,22,41,27],[32,3,32,20],[35,22,35,39],[18,16,18,17],[29,35,29,36],[13,39,29,39],[26,16,26,17],[26,7,26,10],[21,26,21,29],[1,43,2,43],[4,37,4,39],[4,3,4,13],[4,25,4,31],[2,37,2,38],[3,32,3,39],[4,35,4,36],[4,33,4,34],[2,28,3,28],[2,30,3,30],[2,31,3,31],[2,29,3,29],[4,23,4,24],[2,14,2,24],[3,14,3,17],[2,25,3,25],[27,16,27,17],[2,26,3,26],[38,10,38,33],[21,7,21,10],[21,16,21,17],[27,26,27,29],[20,22,28,22],[16,26,16,29],[22,16,22,17],[24,24,24,36],[17,13,17,15],[18,13,18,15],[6,36,7,40],[7,9,7,35],[16,7,16,10],[36,1,37,41],[6,7,6,35],[3,43,7,43],[3,18,3,24],[31,22,31,39],[27,7,27,10],[16,16,16,17],[21,35,21,36],[16,13,16,15],[29,7,29,10],[29,16,29,17],[29,26,29,29],[26,26,26,29],[26,35,26,36],[27,35,27,36],[22,35,22,36],[16,35,16,36]]}
[]
[null,null,null,null,null,null,null,null,null,null,null,null,null,null,null,null,null,null,null,null,null,null,null,null,null,null,null,null,null,null,null,null,null,null,null,null,null,null,null,null,null,null,null,"REFERENCE CHART WILL NOT PRINT","YOUTH","SSMV/shell","bust","SHELL",null,"SKIRT","waist","hip","SSBC/skirt",null,"MFLEX SKIRT/SHORT MFBC",null,null,null,"MF LINER/SHELL",null,null,"JACKET",null,null,"PANT",null,null,"SKIRT LENGTH",null,"PANT LENGTH"]
[null,null,null,"SIZING CALCULATOR",null,null,null,null,null,null,null,null,null,null,{"$f":"'ATHLETE INFO'!F9","v":0},null,null,null,null,null,null,null,null,null,null,"B",{"$f":"'ATHLETE INFO'!B23","v":0},null,"W",{"$f":"'ATHLETE INFO'!D23","v":0},"H",{"$f":"'ATHLETE INFO'!F23","v":0},{"$f":"'ATHLETE INFO'!F14","v":""},{"$f":"'ATHLETE INFO'!G14","v":""},{"$f":"'ATHLETE INFO'!H14","v":""},{"$f":"'ATHLETE INFO'!F16","v":"Graduation Year    ▼"},{"$f":"'ATHLETE INFO'!B29","v":0},{"$f":"'ATHLETE INFO'!D29","v":0},null,{"$f":"'ATHLETE INFO'!F29","v":0},null,null,null,null,null,"YS | YM",21,"YXS",null,"A",20,29,"YXS",null,"YXS",22,null,null,"Size","Bust",null,"Size","Bust",null,"Size","Hips",null,"Ent","Avail.","Ent","Avail"]
[null,null,null,"1.   SEE RED BOX | REVIEW SIZES",null,null,null,null,null,null,null,null,null,null,{"$f":"'ATHLETE INFO'!F10","v":0},null,null,null,{"$f":"'ATHLETE INFO'!F11","v":0},null,null,null,null,null,null,null,null,null,null,null,null,null,{"$f":"'ATHLETE INFO'!F17","v":0},null,null,null,null,null,null,null,null,null,null,"If a size populates in RED, this is an indicator that your waist|hips are not in line with our size chart.  While this may be the best size, please check that you have measured correctly and reference skirt chart ↓",null,"YS | YM",22,"YXS",null,"B",21,30,"YS",null,"YXS",23,null,null,"YXS",21,null,"YXS",19,null,"YXS",22,null,5,10,12,17]
[null,null,null,"2.  MARK WHAT YOU NEED",null,null,null,null,null,null,null,null,null,null,null,null,null,null,null,null,null,null,null,"SIZES LIKE:",null,{"$f":"'ATHLETE INFO'!B33","v":0},null,null,null,null,null,null,null,{"$f":"'ATHLETE INFO'!F15","v":"Squad    ▼"},null,{"$f":"'ATHLETE INFO'!G15","v":"Squad    ▼"},null,{"$f":"'ATHLETE INFO'!H15","v":"Squad    ▼"},null,null,null,null,null,null,null,"YS | YM",23,"YS",null,"C",22,31,"YS",null,"YXS",24,null,null,"YXS",22,null,"YXS",20,null,"YXS",23,null,6,10,13,17]
[null,null,null,"3.  SIGN & SEND TO REP",null,null,null,null,null,null,null,null,null,null,null,"Internal | Rep Notes",null,null,null,null,null,null,null,null,null,null,null,null,null,null,null,null,null,null,null,null,null,null,null,null,null,null,null,null,null,"YS | YM",24,"YS",null,"C",22,31,"YS",null,"YS",25,null,null,"YS",23,null,"YXS",21,null,"YXS",24,null,7,10,14,17]
[null,null,null,null,null,null,null,"     1.  BASED ON YOUR AGE, THE BELOW FIT SUGGESTION IS HIGHLIGHTED IN RED",null,null,null,null,null,null,null,null,null,null,null,null,null,null,null,null,null,null,null,null,null,null,null,null,null,null,null,null,"Don't See Red Box?                                                                                                                                                                                                                        ",null,null,null,null,null,null,null,null,"YS | YM",25,"YM",null,"D",23,32,"YM",null,"YS",26,null,null,"YS",24,null,"YS",22,null,"YS",25,null,8,10,15,17]
[null,null,null,null,null,null,null,null,null,"While you should only choose youth OR adult per style, you may combine to complete an outfit (Ex. Adult Shell|Youth Skirt)",null,null,null,null,null,null,null,null,null,null,null,null,null,null,null,null,null,null,null,null,null,null,null,null,null,null,null,null,null,null,null,null,null,null,null,"YM | YL",26,"YM",null,"E",24,33,"YM",null,"YS",27,null,null,"YM",25,null,"YS",23,null,"YS",26,null,9,10,16,17]
[null,null,null,null,null,null,null,null,null,null,null,null,null,null,null,null,null,null,null,null,null,null,null,null,null,null,null,null,null,null,null,null,null,null,null,null,null,null,null,null,null,null,null,null,null,"YM | YL",27,"YL",null,"F",25,34,"YL",null,"YM",28,null,null,"YM",26,null,"YS",24,null,"YS",27,null,10,10,17,17]
[null,null,null,"                                  ADULT SIZES",null,null,null,null,null,null,null,null,null,null,null,null,null,null,null,null,null,null,null,null,null,null,null,null," YOUTH SIZES",null,null,null,null,null,null,null,null,null,null,null,null,null,null,null,null,"YL ",28,"YL",null,"G",26,35,"YL",null,"YM",29,null,null,"YL",27,null,"YM",25,null,"YM",28,null,11,11,18,18]
[null,null,null,null,null,null,null,null,null,null,null,null,null,null,null,null,null,null,null,null,null,null,null,null,null,null,null,null,null,null,null,null,null,null,null,null,null,null,null,null,null,null,null,null,null,"YL",29,"YXL",null,"H",27,36,"←",null,"YM",30,null,null,"YL",28,null,"YM",26,null,"YM",29,null,12,12,19,19]
[null,null,null,null,null,null,null,null,"2.  PLACE A       NEXT TO THE GARMENTS YOU NEED.                                                  ",null,null,null,null,null,null,null,null,null,null,null,null,null,null,null,null,null,null,null,null,null,null,null,null,null,null,null,null,null,null,null,null,null,null,null,null,"YL",30,"YXL",null,"I",28,37,"←",null,"YL",31,null,null,"YXL",29,null,"YM",27,null,"YM",30,null,13,13,20,20]
[null,null,null,null,null,null,null,null,null,null,null,null,null,null,null,null,null,null,null,null,null,null,null,null,null,null,null,null,null,null,null,null,null,null,null,null,null,null,null,null,null,null,null,null,null,"YL ",31,"Y2XL",null,"J",29,38,"←",null,"YL",32,null,null,"YXL",30,null,"YL",28,null,"YL",31,null,14,14,21,21]
[null,null,null,null,null,null,null,null,null,null,null,null,null,null,null,null,null,null,null,null,null,null,null,null,null,null,null,null,null,null,null,null,null,null,null,null,null,null,null,null,null,null,null,null,null,"←",32,"Y2XL",null,"K",30,39,"←",null,"YL",33,null,null,"Y2XL",31,null,"YL",29,null,"YL",32,null,15,15,22,22]
[null,null,null,null,null,"ADULT UNIFORMS",null,null,null,null,null,null,null,null,null,null,null,null,null,null,null,null,null,null,"YOUTH UNIFORMS",null,null,null,null,null,null,null,null,null,null,null,null,null,null,null,null,null,null,null,null,"←",33,"Y3XL",null,"L",31,40,"←",null,"YXL",34,null,null,"Y2XL",32,null,"YL",30,null,"YL",33,null,16,16,23,23]
[null,null,null,null,null,"Poly|PowerFIT",null,null,null,null,null,null,null,"MotionFLEX",null,null,null,null,null,null,null,null,null,null,"Poly|PowerFIT",null,null,null,null,null,null,null,"MotionFLEX",null,null,null,null,null,null,null,null,null,null,null,null,"←",34,"Y3XL",null,"M",32,41,"←",null,"YXL",35,null,null,"Y3XL",33,null,"YXL",31,null,"YXL",34,null,17,16,24,24]
[null,null,null,null,null,"SHELL",null,{"$f":"IFERROR(INDEX($AV$23:$AV$1048576,MATCH(AA3,$AU$23:$AU$1048576,0)),\"\")","v":""},null,null,null,null,null,"LINER|SHELL|SUIT",null,null,{"$f":"IFERROR(INDEX($BG$23:$BG$1048576,MATCH(AA3,$BH$23:$BH$1048576,0)),\"\")","v":""},null,null,null,null,null,null,null,"SHELL",null,{"$f":"IFERROR(INDEX($AV$2:$AV$22,MATCH(AA3,$AU$2:$AU$22,0)),\"\")","v":""},null,null,null,null,null,"LINER|SHELL|SUIT",null,null,{"$f":"IFERROR(INDEX($BG$2:$BG$22,MATCH(AA3,$BH$2:$BH$22,0)),\"\")","v":""},null,null,null,null,null,null,null,null,null,"←",35,"Y4XL",null,"N",33,42,"←",null,"YXL",36,null,null,"Y3XL",34,null,"YXL",32,null,"YXL",35,null,18,16,25,25]
[null,null,null,null,null,"Additional back length available",null,null,null,null,null,null,null,"SKIRT",null,null,{"$f":"IFERROR(INDEX($BE$23:$BE$1048576,MATCH(AF3,$BD$23:$BD$1048576,0)),\"\")","v":""},null,null,null,null,null,null,null,"Additional back length available",null,null,null,null,null,null,null,"SKIRT",null,null,{"$f":"IFERROR(INDEX($BC$2:$BC$22,MATCH(AF3,$BD$2:$BD$22,0)),\"\")","v":""},null,null,null,null,null,null,null,null,null,"←",36,"Y4XL",null,"←",34,43,"←",null,"←",37,null,null,"Y4XL",35,null,"YXL",33,null,"YXL",36,null,19,16,26,26]
[null,null,null,null,null,"SKIRT",null,{"$f":"IFERROR(INDEX($AX$23:$AX$1048576,MATCH(AD3,$AY$23:$AY$1048576,0)),\"\")","v":""},{"$f":"IFERROR(INDEX($AX$23:$AX$1048576,MATCH(AF3,$AZ$23:$AZ$1048576,0)),\"\")","v":""},"-",{"$f":"IFERROR(INDEX($BQ$23:$BQ$1048576,MATCH(C41,$BP$23:$BP$1048576,0)),\"\")","v":""},null,null,"SHORT|LEGGING",null,null,{"$f":"IFERROR(INDEX($BE$23:$BE$1048576,MATCH(AF3,$BD$23:$BD$1048576,0)),\"\")","v":""},null,null,null,null,null,null,null,"SKIRT",null,{"$f":"IFERROR(INDEX($AX$2:$AX$22,MATCH(AD3,$AY$2:$AY$22,0)),\"\")","v":""},{"$f":"IFERROR(INDEX($AX$2:$AX$22,MATCH(AF3,$AZ$2:$AZ$22,0)),\"\")","v":""},"-",{"$f":"IFERROR(INDEX($BQ$2:$BQ$22,MATCH(C41,$BP$2:$BP$22,0)),\"\")","v":""},null,null,"SHORT|LEGGING",null,null,{"$f":"IFERROR(INDEX($BC$2:$BC$22,MATCH(AF3,$BD$2:$BD$22,0)),\"\")","v":""},null,null,null,null,null,null,null,null,null,"←",37,"Y5XL",null,"←",35,44,"←",null,"←",38,null,null,"Y4XL",36,null,"←",34,null,"←",37,null,20,16,27,27]
[null,null,null,null,null,"Length Options | 12-19\"",null,null,null,null,null,null,null,null,null,null,"* Select Styles",null,null,null,null,null,null,null,"Length Options | 10-16\"",null,null,null,null,null,null,null,null,null,null,null,null,null,null,null,null,null,null,null,null,"←",38,"Y5XL",null,"←",36,45,"←",null,"←",39,null,null,"←",38,null,"←",35,null,"←",38,null,null,null,28,28]
[null,null,null,null,null,"WARM-UP",null,null,null,null,null,null,null,"SHOE",null,null,null,null,null,null,null,null,null,null,"WARM-UP",null,null,null,null,null,null,null,"SHOE",null,null,null,null,null,null,null,null,null,null,null,null,"←",39,"←",null,"←",37,46,"←",null,"←",40,null,null,"←",39,null,"←",36,null,"←",39]
[null,null,null,null,null,"JACKET",null,{"$f":"IFERROR(INDEX($BJ$23:$BJ$1048576,MATCH(AA3,$BK$23:$BK$1048576,0)),\"\")","v":""},null,null,null,null,null,"SIDELINE ",null,null,{"$f":"F41","v":0},null,null,null,null,null,null,null,"JACKET",null,{"$f":"IFERROR(INDEX($BJ$2:$BJ$22,MATCH(AA3,$BK$2:$BK$22,0)),\"\")","v":""},null,null,null,null,null,"SIDELINE",null,null,{"$f":"F41","v":0},null,null,null,null,null,null,null,null,null,"←",40,"←",null,"←",38,47,"←",null,"←",41,null,null,"←",40,null,"←",37,null,"←",40]
[null,null,null,null,null,"PANT",null,{"$f":"IFERROR(INDEX($BM$23:$BM$1048576,MATCH(AF3,$BN$23:$BN$1048576,0)),\"\")","v":""},null,"-",{"$f":"IFERROR(INDEX($BS$23:$BS$1048576,MATCH(D41,$BR$23:$BR$1048576,0)),\"\")","v":""},null,null,"COMPETITION",null,null,{"$f":"F41","v":0},null,null,null,null,null,null,null,"PANT",null,{"$f":"IFERROR(INDEX($BM$2:$BM$22,MATCH(AF3,$BN$2:$BN$22,0)),\"\")","v":""},null,"-",{"$f":"IFERROR(INDEX($BS$3:$BS$22,MATCH(D41,$BR$3:$BR$22,0)),\"\")","v":""},null,null,"COMPETITION",null,null,{"$f":"F41","v":0},null,null,null,null,null,null,null,null,null,"→",21,"→",null,null,null,null,"→",null,"→",22,"→",null,"→",17,null,"→",21,null,"→",24]
[null,null,null,null,null,"Length Options | 28-34\"",null,null,null,null,null,null,null,null,null,null,null,null,null,null,null,null,null,null,"Length Options | 17-28\"",null,null,null,null,null,null,null,null,null,null,null,null,null,null,null,null,null,null,null,null,"→",22,"→",null,null,null,null,"→",null,"→",23,"→",null,"→",18,null,"→",22,null,"→",25]
[null,null,null,null,null,"UNDERGEAR",null,null,null,null,null,null,null,null,null,null,null,null,null,null,null,null,null,null,"UNDERGEAR",null,null,null,null,null,null,null,null,null,null,null,null,null,null,null,null,null,null,null,null,"→",23,"→",null,null,null,null,"→",null,"→",24,"→",null,"→",19,null,"→",23,null,"→",26]
[null,null,null,null,null,"Spirit Stretch   Stock",null,null,null,null,null,null,null,"MotionFLEX   Made to Order",null,null,null,null,null,null,null,null,null,null,"Spirit Stretch   Stock",null,null,null,null,null,null,null,"MotionFLEX   Made to Order",null,null,null,null,null,null,null,null,null,null,null,null,"→",24,"→",null,null,null,null,"→",null,"→",25,"→",null,"→",20,null,"→",24,null,"→",27]
[null,null,null,null,null,"LINER",null,{"$f":"IFERROR(INDEX($AT23:$AT54,MATCH(H17,$AV23:$AV54,0)),\"\")","v":""},null,null,null,null,null,"LINER",null,null,{"$f":"IFERROR(INDEX($BG$23:$BG$1048576,MATCH(AA3,$BH$23:$BH$1048576,0)),\"\")","v":""},null,null,null,null,null,null,null,"LINER",null,{"$f":"IFERROR(INDEX($AT$2:$AT$22,MATCH(AA17,$AV$2:$AV$22,0)),\"\")","v":""},null,null,null,null,null,"LINER",null,null,{"$f":"IFERROR(INDEX($BG$2:$BG$22,MATCH(AA3,$BH$2:$BH$22,0)),\"\")","v":""},null,null,null,null,null,null,null,null,null,"→",25,"→",null,null,null,null,"→",null,"→",26,"→",null,"→",21,null,"→",25,null,"→",28]
[null,null,null,null,null,"BRIEF",null,{"$f":"IFERROR(INDEX($BA$23:$BA$1048576,MATCH(H19,$AX$23:$AX$1048576,0)),\"\")","v":""},null,null,null,null,null,"BRIEF | MFBC",null,null,{"$f":"IFERROR(INDEX($BC$23:$BC$1048576,MATCH(AF3,$BD$23:$BD$1048576,0)),\"\")","v":""},null,null,null,null,null,null,null,"BRIEF",null,{"$f":"IFERROR(INDEX($BA$2:$BA$22,MATCH(AA19,$AX$2:$AX$22,0)),\"\")","v":""},null,null,null,null,null,"BRIEF | MFBC",null,null,{"$f":"IFERROR(INDEX($BC$2:$BC$22,MATCH(AF3,$BD$2:$BD$22,0)),\"\")","v":""},null,null,null,null,null,null,null,null,null,"→",26,"→",null,null,null,null,"→",null,"→",27,"→",null,"→",22,null,"→",26,null,"→",29,null,"SKIRT LENGTH",null,"PANT LENGTH"]
[null,null,null,null,null,null,null,null,null,null,null,null,null,null,null,null,null,null,null,null,null,null,null,null,null,null,null,null,null,null,null,null,null,null,null,null,null,null,null,null,null,null,null,null,"ADULT","→",27,28,null,"Size","Waist","Hip","→",null,"→",28,"→",null,"→",23,null,"→",27,null,"→",30,null,"Ent","Avail","Ent","Avail"]
[null,null,null,null,null,"CAMP TOP",null,{"$f":"'ATHLETE INFO'!H26","v":0},null,null,null,null,null,"CAMP BOTTOM",null,null,{"$f":"'ATHLETE INFO'!H29","v":0},null,null,null,null,null,null,null,"CAMP TOP",null,{"$f":"'ATHLETE INFO'!H26","v":0},null,null,null,null,null,"CAMP BOTTOM",null,null,{"$f":"'ATHLETE INFO'!H29","v":0},null,null,null,null,null,null,null,null,null,"XS",28,28,null,1,20,30,"→",null,"2XS",29,"→",null,"*2XS",24,null,"XS",28,null,"XS",31,null,5,12,24,28]
[null,null,null,null,null,null,null,null,null,null,null,null,null,null,null,null,null,null,null,null,null,null,null,null,null,null,null,null,null,null,null,null,null,null,null,null,null,null,null,null,null,null,null,null,null,"XS",29,30,null,2,21,31,"→",null,"2XS",30,"→",null,"*2XS",25,null,"XS",29,null,"XS",32,null,6,12,25,28]
[null,null,null,null,null,null,null,null,null,null,null,null,null,null,null,null,null,null,null,null,null,null,"If a size does not populate, it is not on this chart. Rep can assist.",null,null,null,null,null,null,null,null,null,null,null,null,null,null,null,null,null,null,null,null,null,null,"S",30,30,null,3,22,32,"→",null,"XS",31,"2XS",null,"*2XS",26,null,"XS",30,null,"XS",33,null,7,12,26,28]
[null,null,null,"IF YOU WISH TO CHANGE ANY SIZES PLEASE NOTE BELOW:",null,null,null,null,null,null,null,null,null,null,null,null,null,null,null,null,null,null,"3. PARENT SIGNATURE",null,null,null,null,null,null,null,null,null,null,null,null,null,null,null,null,null,null,null,null,null,null,"S",31,32,null,4,23,33,"XS",null,"XS",32,"2XS",null,"XS",27,null,"S",31,null,"S",34,null,8,12,27,28]
[null,null,null,null,null,null,null,null,null,null,null,null,null,null,null,null,null,null,null,null,null,null,"I agree that the measurements are true and accurate. Varsity will NOT be responsible for improper fit due to innaccuracy of measurements. I will be responsible for all alterations.",null,null,null,null,null,null,null,null,null,null,null,null,null,null,null,null,null,null,null,null,null,null,"S",32,32,null,5,24,34,"XS",null,"S",33,"XS",null,"XS",28,null,"S",32,null,"S",35,null,9,12,28,28]
[null,null,null,null,null,null,null,null,null,null,null,null,null,null,null,null,null,null,null,null,null,null,null,null,null,null,null,null,null,null,null,null,null,null,null,null,null,null,null,null,null,null,null,null,null,"M",33,34,null,6,25,35," S",null,"S",34,"XS",null,"XS",29,null,"S",33,null,"S",36,null,10,12,29,30]
[null,null,null,null,null,null,null,null,null,null,null,null,null,null,null,null,null,null,null,null,null,null,null,null,null,null,null,null,null,null,null,null,null,null,null,null,null,null,null,null,null,null,null,null,null,"M",34,34,null,7,26,36,"S",null,"M",35,"S",null,"S",30,null,"M",34,null,"M",37,null,11,12,30,30]
[null,"SAVE & EMAIL TO COACH or PRINT THIS PAGE AND GIVE TO COACH    |    When selecting PRINT→Use ACTIVE SHEET Print Setting",null,null,null,null,null,null,null,null,null,null,null,null,null,null,null,null,null,null,null,null,null,null,null,null,null,null,null,null,null,null,null,null,null,null,null,null,null,null,null,null,null,null,null,"M",35,36,null,8,27,37,"M",null,"M",36,"S",null,"S",31,null,"M",35,null,"M",38,null,12,12,31,32]
[null,null,null,null,null,null,null,null,null,null,null,null,null,null,null,null,null,null,null,null,null,null,null,null,null,null,null,null,null,null,null,null,null,null,null,null,null,null,null,null,null,null,null,null,null,"L",36,36,null,9,28,38,"M",null,"L",37,"M",null,"S",32,null,"M",36,null,"M",39,null,13,13,32,32]
[null,null,null,null,null,null,null,null,null,null,null,null,null,null,null,null,null,null,null,null,null,null,null,null,null,null,null,null,null,null,null,null,null,null,null,null,null,null,null,null,null,null,null,null,null,"L",37,38,null,10,29,39,"L",null,"L",38,"M",null,"M",33,null,"L",37,null,"L",40,null,14,14,33,34]
[null,null,null,null,null,null,null,null,null,null,null,null,null,null,null,null,null,null,null,null,null,null,null,null,null,null,null,null,null,null,null,null,null,null,null,null,null,null,null,null,null,null,null,null,null,"L",38,38,null,11,30,40,"L",null,"XL",39,"L",null,"M",34,null,"L",38,null,"L",41,null,15,15,34,34]
[null,null,{"$f":"SUM('ATHLETE INFO'!B26)-1","v":-1},{"$f":"'ATHLETE INFO'!D26","v":0},null,{"$f":"'ATHLETE INFO'!F26","v":0},null,null,null,null,null,null,null,null,null,null,null,null,null,null,null,null,null,null,null,null,null,null,null,null,null,null,null,null,null,null,null,null,null,null,null,null,null,null,null,"XL",39,40,null,12,31,41,"XL",null,"XL",40,"L",null,"M",35,null,"L",39,null,"L",42,null,16,16,35,34]
[null,null,null,null,null,null,null,null,null,null,null,null,null,null,null,null,null,null,null,null,null,null,null,null,null,null,null,null,null,null,null,null,null,null,null,null,null,null,null,null,null,null,null,null,null,"XL",40,40,null,13,32,42,"XL",null,"2XL",41,"XL",null,"L",36,null,"XL",40,null,"XL",43,null,17,17,36,34]
[null,null,null,{"$f":"'ATHLETE INFO'!C28","v":0},null,{"$f":"'ATHLETE INFO'!E28","v":0},null,{"$f":"'ATHLETE INFO'!G23","v":0},{"$f":"'ATHLETE INFO'!#REF!","v":{"$error":"#REF!"}},{"$f":"'ATHLETE INFO'!I23","v":0},null,null,null,null,null,null,null,null,null,null,null,null,null,null,null,null,null,null,null,null,null,null,null,null,null,null,null,null,null,null,null,null,null,null,null,"XL",41,42,null,14,33,43," 2XL",null,"2XL",42,"XL",null,"L",37,null,"XL",41,null,"XL",44,null,18,18,37,34]
[null,null,{"$f":"'ATHLETE INFO'!F29","v":0},null,null,null,null,null,null,null,null,null,null,null,null,null,null,null,null,null,null,null,null,null,null,null,null,null,null,null,null,null,null,null,null,null,null,null,null,null,null,null,null,null,null,"2XL",42,42,null,15,34,44,"2XL",null,"3XL",43,"2XL",null,"L",38,null,"XL",42,null,"XL",45,null,19,19,38,34]
[null,null,null,null,null,null,null,null,null,null,null,null,null,null,null,null,null,null,null,null,null,null,null,null,null,null,null,null,null,null,null,null,null,null,null,null,null,null,null,null,null,null,null,null,null,"2XL",43,44,null,16,35,45,"→",null,"3XL",44,"2XL",null,"XL",39,null,"2XL",43,null,"2XL",46,null,20,19]
[null,null,null,null,null,null,null,null,null,null,null,null,null,null,null,null,null,null,null,null,null,null,null,null,null,null,null,null,null,null,null,null,null,null,null,null,null,null,null,null,null,null,null,null,null,"2XL",44,44,null,17,36,46,"→",null,"4XL",45,"3XL",null,"XL",40,null,"2XL",44,null,"2XL",47,null,21,19]
[null,null,null,null,null,null,null,null,null,null,null,null,null,null,null,null,null,null,null,null,null,null,null,null,null,null,null,null,null,null,null,null,null,null,null,null,null,null,null,null,null,null,null,null,null,"→",45,46,null,18,37,47,"→",null,"4XL",46,"3XL",null,"XL",41,null,"2XL",45,null,"2XL",48]
[null,null,null,null,null,null,null,null,null,null,null,null,null,null,null,null,null,null,null,null,null,null,null,null,null,null,null,null,null,null,null,null,null,null,null,null,null,null,null,null,null,null,null,null,null,"→",46,46,null,19,38,48,null,null,"MFBC (4XL)",47,"4XL",null,"2XL",42,null,"3XL",46,null,"3XL",49]
[null,null,null,null,null,null,null,null,null,null,null,null,null,null,null,null,null,null,null,null,null,null,null,null,null,null,null,null,null,null,null,null,null,null,null,null,null,null,null,null,null,null,null,null,null,"→",47,48,null,20,39,49,null,null,null,48,"4XL",null,"2XL",43,null,"3XL",47,null,"3XL",50]
[null,null,null,null,null,null,null,null,null,null,null,null,null,null,null,null,null,null,null,null,null,null,null,null,null,null,null,null,null,null,null,null,null,null,null,null,null,null,null,null,null,null,null,null,null,"→",48,48,null,21,40,50,null,null,null,49,"5XL",null,"2XL",44,null,"3XL",48,null,"3XL",51]
[null,null,null,null,null,null,null,null,null,null,null,null,null,null,null,null,null,null,null,null,null,null,null,null,null,null,null,null,null,null,null,null,null,null,null,null,null,null,null,null,null,null,null,null,null,"→",49,50,null,22,41,51,null,null,null,50,"5XL",null,"3XL",45]
[null,null,null,null,null,null,null,null,null,null,null,null,null,null,null,null,null,null,null,null,null,null,null,null,null,null,null,null,null,null,null,null,null,null,null,null,null,null,null,null,null,null,null,null,null,null,50,50,null,23,42,52,null,null,null,51,"6XL",null,"3XL",46]
[null,null,null,null,null,null,null,null,null,null,null,null,null,null,null,null,null,null,null,null,null,null,null,null,null,null,null,null,null,null,null,null,null,null,null,null,null,null,null,null,null,null,null,null,null,null,51,52,null,24,43,53,null,null,null,null,null,null,"3XL",47]
[null,null,null,null,null,null,null,null,null,null,null,null,null,null,null,null,null,null,null,null,null,null,null,null,null,null,null,null,null,null,null,null,null,null,null,null,null,null,null,null,null,null,null,null,null,null,52,52,null,25,44,54]